[Event "21st IPCA World Championship 2022"]
[Site "Ashdod"]
[Date "2022.05.13"]
[Round "5.10"]
[White "Pilimon, Zbigniew"]
[Black "Freiberg, Doron"]
[Result "0-1"]
[ECO "D06"]
[WhiteElo "1620"]
[BlackElo "1244"]
[Annotator "NA RC COMBH"]
[PlyCount "110"]
[EventDate "2022.05.09"]
[EventType "swiss"]
[EventCountry "ISR"]
[SourceTitle "playchess.com"]
[Source "ChessBase"]
[SourceQuality "1"]
[TimeControl "5400+30"]

1. d4 {[%emt 0:00:06]} Nf6 {[%emt 0:02:29]} 2. c4 {[%emt 0:00:15]} d5 {[%emt 0:00:18]} 3. cxd5 {[%emt 0:00:52]} Qxd5 {[%emt 0:03:38]} 4. Nc3 {[%emt 0:00:18]} Qa5 {[%emt 0:05:13]} 5. e3 {[%emt 0:04:10]} Ne4 {[%emt 0:04:24]} 6. Qc2 {[%emt 0:00:36]} Bf5 {[%emt 0:05:55]} 7. Bd3 {[%emt 0:00:39]} Nd6 {[%emt 0:00:46]} 8. Nge2 {[%emt 0:01:43]} Bxd3 {[%emt 0:01:13]} 9. Qxd3 {[%emt 0:00:09]} Nc6 {[%emt 0:03:34]} 10. O-O {[%emt 0:01:51]} g6 {[%emt 0:08:45]} 11. e4 {[%emt 0:00:56]} Bg7 {[%emt 0:10:10]} 12. Be3 {[%emt 0:00:29]} Nb4 {[%emt 0:06:35]} 13. Qd1 {[%emt 0:00:31]} O-O {[%emt 0:05:22]} 14. a3 {[%emt 0:00:47]} Nc6 {[%emt 0:02:34]} 15. Qd3 {[%emt 0:03:32]} b5 {[%emt 0:37:04]} 16. Nd5 {[%emt 0:04:21]} Rac8 {[%emt 0:00:00]} 17. b3 {[%emt 0:03:30]} e6 {[%emt 0:00:00]} 18. Rfc1 {[%emt 0:02:22]} exd5 {[%emt 0:01:30]} 19. Rxc6 {[%emt 0:00:52]} dxe4 {[%emt 0:00:00]} 20. Qc2 {[%emt 0:00:33]} b4 {[%emt 0:00:00]} 21. axb4 {[%emt 0:00:46]} Qxa1+ {[%emt 0:00:00]} 22. Bc1 {[%emt 0:03:54]} Bh6 {[%emt 0:00:00]} 23. Rc5 {[%emt 0:03:10]} Bxc1 {[%emt 0:00:00]} 24. Qxc1 {[%emt 0:01:56]} Qxc1+ {[%emt 0:00:00]} 25. Rxc1 {[%emt 0:00:25]} Nb5 {[%emt 0:00:00]} 26. g3 {[%emt 0:06:27]} Rfd8 {[%emt 0:00:00]} 27. Rc4 {[%emt 0:00:38]} g5 {[%emt 0:00:00]} 28. Kg2 {[%emt 0:02:42]} Rd7 {[%emt 0:00:00]} 29. g4 {[%emt 0:01:19]} Rcd8 {[%emt 0:00:00]} 30. d5 {[%emt 0:00:57]} Rxd5 {[%emt 0:00:00]} 31. Rxe4 {[%emt 0:00:12]} Nd6 {[%emt 0:00:00]} 32. Re7 {[%emt 0:01:30]} Nb5 {[%emt 0:00:00]} 33. Ng3 {[%emt 0:00:29]} R5d7 {[%emt 0:00:00]} 34. Re5 {[%emt 0:00:38]} Rd5 {[%emt 0:00:00]} 35. Re4 {[%emt 0:02:36]} Rd4 {[%emt 0:00:45]} 36. Re5 {[%emt 0:01:04]} R4d5 {[%emt 0:00:06]} 37. Re4 {[%emt 0:00:21]} f6 {[%emt 0:01:08]} 38. Nf5 {[%emt 0:00:18]} Re5 {[%emt 0:01:46]} 39. Rc4 {[%emt 0:01:38]} Rd7 {[%emt 0:01:21]} 40. h3 {[%emt 0:00:28]} Nd6 {[%emt 0:00:34]} 41. Rd4 {[%emt 0:01:03]} Kf7 {[%emt 0:00:35]} 42. Ne3 {[%emt 0:01:24]} Re4 {[%emt 0:00:30]} 43. Rd5 {[%emt 0:01:48]} Rxb4 {[%emt 0:00:25]} 44. Rd3 {[%emt 0:00:50]} Rd8 {[%emt 0:01:29]} 45. Nd5 {[%emt 0:02:09]} Rb7 {[%emt 0:00:31]} 46. Rf3 {[%emt 0:01:01]} Ne4 {[%emt 0:00:57]} 47. Re3 {[%emt 0:01:06]} Rxd5 {[%emt 0:00:03]} 48. Rxe4 {[%emt 0:00:28]} Rxb3 {[%emt 0:00:06]} 49. Rc4 {[%emt 0:45:11]} c5 {[%emt 0:05:14]} 50. Ra4 {[%emt 0:00:00]} Rd7 {[%emt 0:00:00]} 51. Ra1 {[%emt 0:00:00]} c4 {[%emt 0:00:00]} 52. f3 {[%emt 0:00:00]} c3 {[%emt 0:00:00]} 53. Kg3 {[%emt 0:00:00]} Rc7 {[%emt 0:00:00]} 54. h4 {[%emt 0:00:00]} gxh4+ {[%emt 0:02:30]} 55. Kxh4 {[%emt 0:00:00]} c2 {[%emt 0:00:00]} 0-1

[Event "21st IPCA World Championship 2022"]
[Site "Ashdod"]
[Date "2022.05.13"]
[Round "5.11"]
[White "Shchukina, Ekaterina"]
[Black "Frumin, Rebeka"]
[Result "0-1"]
[ECO "C47"]
[WhiteElo "1496"]
[BlackElo "1319"]
[Annotator "NA RC COMBH"]
[PlyCount "74"]
[EventDate "2022.05.09"]
[EventType "swiss"]
[EventCountry "ISR"]
[SourceTitle "playchess.com"]
[Source "ChessBase"]
[SourceQuality "1"]
[TimeControl "5400+30"]

1. e4 {[%emt 0:00:09]} e5 {[%emt 1:31:00]} 2. Nf3 {[%emt 0:00:13]} Nc6 {[%emt 0:00:00]} 3. Nc3 {[%emt 0:00:16]} Nf6 {[%emt 0:00:00]} 4. d4 {[%emt 0:00:16]} exd4 {[%emt 0:00:00]} 5. Nxd4 {[%emt 0:00:46]} h6 {[%emt 0:00:00]} 6. Be3 {[%emt 0:02:02]} Bb4 {[%emt 0:00:00]} 7. Nxc6 {[%emt 0:02:38]} bxc6 {[%emt 0:00:00]} 8. Bd3 {[%emt 0:00:17]} O-O {[%emt 0:00:00]} 9. O-O {[%emt 0:00:15]} d5 {[%emt 0:00:00]} 10. exd5 {[%emt 0:00:44]} cxd5 {[%emt 0:00:00]} 11. Bd4 {[%emt 0:02:48]} c6 {[%emt 0:00:00]} 12. a3 {[%emt 0:03:29]} Bd6 {[%emt 0:00:00]} 13. f3 {[%emt 0:20:04]} Nh5 {[%emt 0:00:00]} 14. g3 {[%emt 0:14:51]} Bh3 {[%emt 0:00:00]} 15. Re1 {[%emt 0:01:13]} Be6 {[%emt 0:00:00]} 16. f4 {[%emt 0:15:55]} c5 {[%emt 0:00:00]} 17. Qxh5 {[%emt 0:11:02]} cxd4 {[%emt 0:00:00]} 18. Ne2 {[%emt 0:07:59]} Bc5 {[%emt 0:00:00]} 19. b4 {[%emt 0:02:35]} Bb6 {[%emt 0:00:00]} 20. f5 {[%emt 0:01:56]} Bd7 {[%emt 0:00:00]} 21. Rf1 {[%emt 0:03:44]} Qg5 {[%emt 0:00:00]} 22. Qxg5 {[%emt 0:00:19]} hxg5 {[%emt 0:00:00]} 23. Kg2 {[%emt 0:02:12]} a6 {[%emt 0:00:00]} 24. Nc1 {[%emt 0:02:28]} Bb5 {[%emt 0:11:30]} 25. Bxb5 axb5 26. Nb3 Rfe8 27. Kf3 Rac8 28. Rac1 f6 {[%emt 0:00:00]} 29. Rfd1 {[%emt 0:05:54]} Re3+ {[%emt 0:00:00]} 30. Kg2 {[%emt 0:00:09]} Re2+ {[%emt 0:00:00]} 31. Kf3 {[%emt 0:00:12]} Rcxc2 {[%emt 0:00:00]} 32. Rxc2 {[%emt 0:00:18]} Rxc2 {[%emt 0:00:00]} 33. Nxd4 {[%emt 0:00:08]} g4+ {[%emt 0:00:00]} 34. Kf4 {[%emt 0:01:42]} Rc4 {[%emt 0:00:00]} 35. Ke3 {[%emt 0:00:10]} Kf7 {[%emt 0:00:00]} 36. Rd3 {[%emt 0:00:54]} Ke7 {[%emt 0:00:00]} 37. Rd2 {[%emt 0:00:24]} Kd6 {[%emt 0:00:00]} 0-1

[Event "21st IPCA World Championship 2022"]
[Site "Ashdod"]
[Date "2022.05.16"]
[Round "9.1"]
[White "Shapiro, Benny"]
[Black "Obodchuk, Andrei"]
[Result "0-1"]
[ECO "D85"]
[WhiteElo "1884"]
[BlackElo "2295"]
[Annotator "TA"]
[PlyCount "138"]
[EventDate "2022.05.09"]
[EventType "swiss"]
[EventCountry "ISR"]
[SourceTitle "playchess.com"]
[Source "ChessBase"]
[SourceQuality "1"]
[TimeControl "5400+30"]

{[%evp 15,138,0,0,0,8,-18,-11,-9,-8,-17,-17,-46,-33,-27,-26,-55,-29,-30,0,0,0,-17,-4,0,0,0,0,-11,0,-6,-7,-31,0,0,0,0,0,0,10,10,3,0,0,0,0,0,0,-22,-12,-16,-8,-57,-20,-35,-34,-120,-135,-222,-139,-129,-133,-127,-127,-114,-68,-141,-140,-155,-83,-76,-30,-31,0,-85,0,0,0,0,0,-195,-195,-227,-210,-228,-228,-228,-217,-174,-117,-117,-117,-357,-338,-393,-391,-744,-681,-679,-658,-1254,-1130,-971,-266,-1338,-1294,-1208,-1276,-1240,-1248,-1024,-934,-2139,-1924,-29969,-29970,-29958,-9337,-29970,-29970,-29972,-29975,-29985,-29986,-29988,-29988]} 1. d4 {[%emt 0:00:02]} Nf6 {[%emt 0:00:05]} 2. Nf3 {[%emt 0:00:02]} g6 {[%emt 0:00:19]} 3. c4 {[%emt 0:00:16]} Bg7 {[%emt 0:00:06]} 4. Nc3 {[%emt 0:00:14]} d5 {[%emt 0:00:05]} 5. cxd5 {[%emt 0:00:23]} Nxd5 {[%emt 0:00:05]} 6. e4 {[%emt 0:00:20]} Nxc3 {[%emt 0:00:09]} 7. bxc3 {[%emt 0:00:13]} c5 {[%emt 0:00:02]} 8. h3 {[%emt 0:00:18]} O-O {[%emt 0:02:33]} 9. Be3 {[%emt 0:05:13] D85: Exchange Grünfeld: Unusual White 7th moves and lines with 7 Nf3.} b6 {[%emt 0:00:43]} 10. Qd2 {[%emt 0:02:41]} Bb7 {[%emt 0:01:15]} 11. Bd3 {[%emt 0:00:25] The position is equal.} cxd4 {[%emt 0:04:18]} 12. cxd4 {[%emt 0:00:58]} Nc6 {[%emt 0:00:07][%cal Rc6d4] [#]} 13. Bc4 $146 {[%emt 0:02:14]} ({Predecessor:} 13. e5 Na5 14. O-O Rc8 15. Qe2 Qd5 16. Rac1 Kh8 17. Rfd1 f6 18. Rxc8 Rxc8 19. Nh4 {1-0 (38) Glavas,D (2322)-Vlaic,B (2269) Sibenik 2011}) 13... Rc8 {[%emt 0:00:39][%cal Oc6d4] ...Nxd4! is the strong threat.} 14. Rc1 {[%emt 0:01:01]} Na5 {[%emt 0:00:19]} 15. Bd3 {[%emt 0:00:27]} Rxc1+ {[%emt 0:00:15]} 16. Qxc1 {[%emt 0:00:05]} Qa8 {[%emt 0:03:31]} 17. Qb1 {[%emt 0:01:52]} Rc8 {[%emt 0:07:01]} 18. Nd2 {[%emt 0:05:08] Prevents Nc4.} e6 {[%emt 0:01:44]} 19. O-O {[%emt 0:00:32]} Rd8 {[%emt 0:00:13]} 20. Nf3 {[%emt 0:01:05]} Nc6 {[%emt 0:02:47][%cal Rc6d4]} 21. Qb2 {[%emt 0:00:56]} Qb8 {[%emt 0:00:41][%cal Oc6d4]} 22. Rd1 {[%emt 0:01:51]} Qd6 {[%emt 0:01:10][%cal Rc6d4]} 23. Be2 {[%emt 0:01:07]} Na5 {[%emt 0:01:09]} 24. Bd3 {[%emt 0:01:37]} f5 {[%emt 0:05:16]} 25. e5 {[%emt 0:03:59]} Qd5 {[%emt 0:02:40]} 26. Rc1 {[%emt 0:02:47]} Rc8 {[%emt 0:05:53]} 27. Rxc8+ {[%emt 0:01:28]} Bxc8 {[%emt 0:00:01]} 28. Qc2 {[%emt 0:01:30]} Qc6 {[%emt 0:01:29]} 29. Qe2 {[%emt 0:02:45]} Qc7 {[%emt 0:08:32]} 30. Qd2 {[%emt 0:04:08]} Bb7 {[%emt 0:00:57]} 31. Be2 {[%emt 0:01:50]} Bd5 {[%emt 0:00:42]} 32. Bg5 {[%emt 0:01:34]} Nc6 {[%emt 0:02:31]} 33. a3 {[%emt 0:01:11]} (33. Ne1 $11 {is more appropriate.}) 33... Bf8 {[%emt 0:02:00]} 34. Qe3 {[%emt 0:02:17]} Na5 {[%emt 0:01:17]} 35. Bf6 {[%emt 0:01:13]} ({White should play} 35. Bh6 $15) 35... Qc2 {[%emt 0:01:22][%cal Of5f4]} 36. h4 {[%emt 0:02:46]} (36. Ne1 $17 {might work better.} Qa2 37. Bf3) 36... Qe4 {[%emt 0:00:27]} 37. a4 {[%emt 0:04:02]} Qxe3 $1 {[%emt 0:01:33]} 38. fxe3 {[%emt 0:00:03]} h6 {[%emt 0:01:21] Against Ng5} 39. Kf2 {[%emt 0:01:42]} Kf7 {[%emt 0:00:21]} (39... Nc4 $1 $17 40. Bd8 Bb4) 40. Bb5 {[%emt 0:01:16]} (40. h5 $15) 40... Bb4 {[%emt 0:06:02]} 41. Bd8 {[%emt 0:01:18]} Nc6 {[%emt 0:03:28]} (41... Nc4 $142 42. Bc7 Nb2) 42. Bf6 $17 {[%emt 0:01:35]} Nb8 {[%emt 0:00:20]} (42... a5 $17) 43. Bd8 $11 {[%emt 0:01:27]} Nc6 {[%emt 0:02:59]} (43... Be4 $15) 44. Bf6 $17 {[%emt 0:00:26]} Be7 {[%emt 0:01:50]} ({Better is} 44... a5 $17) 45. Bxe7 $11 {[%emt 0:01:33]} Kxe7 {[%emt 0:00:02][%mdl 4096] Endgame KBN-KBN} 46. g3 {[%emt 0:01:04]} Nb4 {[%emt 0:00:49] Hoping for ...a6.} 47. Ne1 $2 {[%emt 0:02:06]} (47. Nd2 $1 $11 {and White has nothing to worry.}) 47... Bb3 $1 $19 {[%emt 0:00:30]} 48. Ke2 {[%emt 0:02:34]} a6 {[%emt 0:00:13][%cal Ba7a6,Ba6b5,Bb5a4][%mdl 32]} 49. Nd3 {[%emt 0:01:48]} axb5 {[%emt 0:01:13]} 50. Nxb4 {[%emt 0:00:15]} bxa4 {[%emt 0:00:09] Threatens to win with ...a3. KB-KN} 51. Kd2 {[%emt 0:00:17]} Bc4 {[%emt 0:05:53]} (51... Kf7 $19 52. Kc3 b5) 52. Kc3 $17 {[%emt 0:00:33]} b5 {[%emt 0:00:04]} 53. Kb2 $2 {[%emt 0:01:06] White does not recover from this.} (53. Nc2 $17) 53... Kf7 $1 $19 {[%emt 0:00:07]} 54. Ka3 {[%emt 0:02:31]} g5 $1 {[%emt 0:00:16]} 55. hxg5 $2 {[%emt 0:00:55] [#]} (55. Na6 Kg6 56. Nc7) 55... h5 $1 {[%emt 0:04:18]} 56. Kb2 {[%emt 0:06:14]} Kg6 {[%emt 0:00:12]} 57. Ka3 {[%emt 0:00:49]} Kxg5 {[%emt 0:01:12] Strongly threatening ...Kg4.} 58. Kb2 {[%emt 0:01:45]} Be2 $2 {[%emt 0:00:17]} (58... Bb3 59. Nd3 Kg4) 59. Ka3 $2 {[%emt 0:01:04] [#]} (59. d5 exd5 60. Nc6) 59... Bf3 $1 {[%emt 0:00:17]} ({Stronger than} 59... Kg4 60. d5 Kxg3 61. d6 $11) 60. Kb2 {[%emt 0:04:22]} Bb7 {[%emt 0:01:31]} 61. Nd3 {[%emt 0:01:26]} Kg4 {[%emt 0:00:34]} 62. Nf4 {[%emt 0:00:31]} Bc8 {[%emt 0:01:45]} 63. Ka3 {[%emt 0:01:20]} Kxg3 {[%emt 0:00:23] And now ...h4 would win.} 64. Nxh5+ {[%emt 0:00:25]} Kf3 {[%emt 0:00:06]} 65. Nf6 {[%emt 0:01:58]} Kxe3 {[%emt 0:00:06] ( -> ...f4)} 66. d5 {[%emt 0:00:15]} exd5 {[%emt 0:00:06] Black mates.} 67. Nxd5+ {[%emt 0:00:14]} Kd4 {[%emt 0:02:07]} 68. Nb6 {[%emt 0:00:44]} Be6 {[%emt 0:00:12]} 69. Kb4 {[%emt 0:00:39]} f4 {[%emt 0:00:10] Weighted Error Value: White=0.50/Black=0.21 (precise)} 0-1

[Event "21st IPCA World Championship 2022"]
[Site "Ashdod"]
[Date "2022.05.16"]
[Round "9.2"]
[White "Gerasimova, Svetlana"]
[Black "Mikheev, Stanislav"]
[Result "0-1"]
[ECO "C54"]
[WhiteElo "1906"]
[BlackElo "2333"]
[Annotator "TA"]
[PlyCount "54"]
[EventDate "2022.05.09"]
[EventType "swiss"]
[EventCountry "ISR"]
[SourceTitle "playchess.com"]
[Source "ChessBase"]
[SourceQuality "1"]
[TimeControl "5400+30"]

{[%evp 9,54,11,27,19,29,20,31,27,50,-22,-31,-27,-25,-38,-36,-20,0,-102,-112,-139,-141,-310,-309,-301,-314,-303,-302,-368,-353,-414,-417,-449,-462,-557,-547,-787,-784,-817,-813,-814,-812,-797,-799,-1015,-993,-29998,-29999]} 1. e4 {[%emt 0:00:04]} e5 {[%emt 0:00:07]} 2. Nf3 {[%emt 0:00:18]} Nc6 {[%emt 0:00:07]} 3. Bc4 {[%emt 0:00:32]} Nf6 {[%emt 0:00:09]} 4. d3 {[%emt 0:01:04]} Bc5 {[%emt 0:00:43]} 5. c3 {[%emt 0:02:02]} a6 {[%emt 0:00:43]} 6. a4 {[%emt 0:00:42] C54: Giuoco Piano: 4 c3 Nf6, main lines with 5 d4 and 5 d3.} O-O {[%emt 0:00:40]} 7. O-O {[%emt 0:00:20]} d5 {[%emt 0:02:50]} 8. exd5 {White is slightly better.} Nxd5 {[%emt 0:00:02][%cal Bf6d5,Bd5c3,Bc3e2,Be2c1,Bc1d3,Bd3b2][%mdl 32] [#]} 9. d4 $146 {[%emt 0:04:36]} (9. Re1 $14) ({Predecessor:} 9. Re1 Bg4 10. Nbd2 Kh8 11. h3 Bh5 12. Ne4 Ba7 13. Ng3 Bg6 14. Nxe5 Nxe5 15. Rxe5 Nb6 {1-0 (25) Duda,J (2728)-So,W (2754) Moscow 2019}) 9... exd4 $11 10. cxd4 {[%emt 0:04:27]} Bb6 {[%emt 0:03:12]} 11. Nc3 {[%emt 0:02:19]} Be6 {[%emt 0:01:48] Threatens to win with ...Nxc3.} 12. Ng5 {[%emt 0:15:09]} Nxc3 {[%emt 0:01:36]} 13. Qd3 {[%emt 0:01:17] [#]} (13. Qc2 $11 {keeps the balance.} Ne2+ 14. Bxe2) 13... Ne2+ $1 $17 {[%emt 0:01:45][%mdl 512]} 14. Kh1 {[%emt 0:08:05][%csl Gg5][%cal Rd3h7]} (14. Qxe2 Bxc4) 14... g6 {[%emt 0:00:13]} 15. Nxe6 $2 {[%emt 0:03:36] White does not recover from this.} (15. Qxe2 $17 {only move.} Bxc4 16. Qxc4) 15... Nxc1 $19 {[%emt 0:00:36] Pair of Knights!} ({Inferior is} 15... fxe6 16. Qxe2 Qxd4 17. Bh6 $11) 16. Nxd8 {[%emt 0:03:38]} Nxd3 {[%emt 0:00:28]} 17. Nxc6 {[%emt 0:00:04]} Nxb2 {[%emt 0:01:08]} (17... bxc6 18. Bxd3 Bxd4 19. Rac1 $15) 18. Ne7+ {[%emt 0:02:09]} Kg7 {[%emt 0:00:23]} 19. Bd5 {[%emt 0:02:46]} c6 {[%emt 0:01:07]} 20. Rab1 {[%emt 0:04:08]} Bxd4 {[%emt 0:00:52]} ({Not} 20... cxd5 21. Rxb2 Rfe8 22. Nxd5 Bxd4 23. Rxb7 $17) 21. Bb3 {[%emt 0:02:27]} Rfe8 {[%emt 0:01:20]} 22. Rfe1 {[%emt 0:01:05]} Nd3 {[%emt 0:00:59]} 23. Re2 {[%emt 0:08:59]} Nxf2+ {[%emt 0:00:58]} 24. Kg1 {[%emt 0:00:18]} Ne4+ {[%emt 0:00:13]} 25. Kf1 {[%emt 0:00:34]} Rxe7 {[%emt 0:00:34]} 26. Rbe1 {[%emt 0:01:23]} Rae8 {[%emt 0:00:25][%cal Oe4d2] ( -> ...Nd2+!)} 27. Bc2 {[%emt 0:00:39] [#]} Nd2+ $1 {[%emt 0:00:25] Weighted Error Value: White=0.84/Black=0.05 (flawless)} 0-1

[Event "21st IPCA World Championship 2022"]
[Site "Ashdod"]
[Date "2022.05.16"]
[Round "9.3"]
[White "Zilberman, Yaacov"]
[Black "Campos, Eugenio"]
[Result "1-0"]
[ECO "A75"]
[WhiteElo "2315"]
[BlackElo "2247"]
[Annotator "TA"]
[PlyCount "73"]
[EventDate "2022.05.09"]
[EventType "swiss"]
[EventCountry "ISR"]
[SourceTitle "playchess.com"]
[Source "ChessBase"]
[SourceQuality "1"]
[TimeControl "5400+30"]

{[%evp 25,73,43,63,59,56,45,57,54,86,88,102,109,121,102,96,94,100,77,205,214,218,209,204,208,270,244,288,302,281,247,291,237,231,206,199,212,648,209,138,0,643,630,1007,997,1329,284,937,937,890,893]} 1. d4 {[%emt 0:00:07]} Nf6 {[%emt 0:00:08]} 2. c4 {[%emt 0:00:09]} c5 {[%emt 0:00:07]} 3. d5 {[%emt 0:00:08]} e6 {[%emt 0:00:06]} 4. Nc3 {[%emt 0:00:12]} exd5 {[%emt 0:00:07]} 5. cxd5 {[%emt 0:00:06]} d6 {[%emt 0:00:06]} 6. Nf3 {[%emt 0:00:32]} g6 {[%emt 0:00:10]} 7. e4 {[%emt 0:00:14]} a6 {[%emt 0:00:12]} 8. a4 {[%emt 0:04:29]} Bg7 {[%emt 0:00:10]} 9. Be2 {[%emt 0:00:57]} O-O {[%emt 0:00:10]} 10. O-O {[%emt 0:00:15]} Bg4 {[%emt 0:00:39]} 11. Bg5 {[%emt 0:01:38]} Nbd7 {[%emt 0:00:36]} 12. Nd2 {[%emt 0:03:03]} Bxe2 {[%emt 0:00:35]} 13. Qxe2 {[%emt 0:00:08]} Re8 {[%emt 0:00:17]} 14. a5 {[%emt 0:02:49] A75: Modern Benoni: Classical: 9...a6 10 a4 Bg4.} Qc7 {[%emt 0:03:15] [#]} 15. Rfe1 $146 {[%emt 0:05:25]} ({Predecessor:} 15. f3 h6 16. Be3 Re7 17. Kh1 Rae8 18. Ra3 Nh5 19. g4 Nhf6 20. f4 b5 21. axb6 Nxb6 {0-1 (46) Aabling Thomsen,J (2388)-Warmerdam,M (2417) Porto Carras 2018}) 15... h6 {[%emt 0:03:34]} 16. Be3 {[%emt 0:06:57] White is slightly better.} Ne5 {[%emt 0:01:04]} 17. h3 {[%emt 0:00:59]} b5 {[%emt 0:05:20]} 18. axb6 $1 {[%emt 0:00:32]} Qxb6 {[%emt 0:00:05]} 19. f4 {[%emt 0:01:27]} Ned7 {[%emt 0:00:15]} 20. Nc4 $36 {[%emt 0:00:27][%cal Bd2c4,Bc4a5,Ba5c6][%mdl 2080] White is in control.} Qc7 {[%emt 0:00:11]} 21. Qd3 {[%emt 0:05:02] White is more active.} Reb8 {[%emt 0:08:11]} (21... Nb6 $16) 22. e5 $18 {[%emt 0:08:12][%cal Be4e5,Be5e6][%mdl 32]} Ne8 {[%emt 0:02:35]} 23. e6 {[%emt 0:00:52]} Nb6 {[%emt 0:00:27]} 24. Na5 {[%emt 0:02:10]} c4 {[%emt 0:01:27]} 25. Qd2 {[%emt 0:01:26] And now Nc6 would win.} Bxc3 {[%emt 0:08:25]} 26. bxc3 {[%emt 0:00:19]} Nf6 {[%emt 0:00:03]} 27. Nc6 {[%emt 0:03:15]} Re8 {[%emt 0:00:53]} 28. exf7+ {[%emt 0:04:38]} Kxf7 {[%emt 0:00:19]} 29. Bxb6 {[%emt 0:01:46]} (29. Bd4 Rxe1+ 30. Rxe1 (30. Qxe1 Nbxd5 31. Nb4 Nxb4 $14) 30... Nbxd5 $14) 29... Qxb6+ {[%emt 0:00:15] [#]} 30. Kh2 $1 {[%emt 0:00:19][%cal Of4f5] Threatens to win with f5!} Qb5 $2 {[%emt 0:02:28]} (30... Ne4 31. Qa2 Qb5) 31. Ra5 $2 {[%emt 0:01:39]} (31. Re6) 31... Qb6 {[%emt 0:02:45]} 32. Raa1 {[%emt 0:04:44][%mdl 8192]} (32. Re6 $16 Qb1 33. Qf2 (33. Rxd6 Re1 $16) (33. Qd4 Qf5 $16)) 32... Qb5 $1 {[%emt 0:02:02]} 33. Re6 {[%emt 0:00:31]} Qc5 {[%emt 0:12:44]} 34. Ra5 {[%emt 0:01:35]} Qb6 {[%emt 0:15:55]} 35. Rxd6 $2 {[%emt 0:01:58]} (35. Ne5+ Kg8 {[#]} 36. Rxf6 $1) 35... Qe3 $2 {[%emt 0:00:15]} (35... Kg7 36. Qd4 (36. Qc2 $2 Re1 $17) 36... Qxd4 37. Nxd4 Kf7) 36. Qxe3 {[%emt 0:01:27]} Rxe3 {[%emt 0:01:11]} 37. Ne5+ {[%emt 0:00:17] Weighted Error Value: White=0.54/Black=0.37} 1-0

[Event "21st IPCA World Championship 2022"]
[Site "Ashdod"]
[Date "2022.05.16"]
[Round "9.4"]
[White "Gurbanov, Andrei"]
[Black "Lipilin, Ilia"]
[Result "1-0"]
[ECO "A80"]
[WhiteElo "2302"]
[BlackElo "2198"]
[Annotator "TA"]
[PlyCount "67"]
[EventDate "2022.05.09"]
[EventType "swiss"]
[EventCountry "ISR"]
[SourceTitle "playchess.com"]
[Source "ChessBase"]
[SourceQuality "1"]
[TimeControl "5400+30"]

{[%evp 9,67,29,35,31,51,36,168,154,143,165,156,161,153,147,166,183,166,171,248,268,446,261,268,160,154,0,0,0,0,0,0,-247,-206,-248,164,165,153,167,152,156,151,147,166,108,153,158,29987,29988,29988,29989,29989,1320,29990,29991,29995,29995,29996,29997,29997,29998]} 1. d4 {[%emt 0:01:06]} f5 {[%emt 0:00:09]} 2. Bg5 {[%emt 0:01:01][%cal Bc1g5,Bg5h4,Bh4g3][%mdl 32]} h6 {[%emt 0:00:11]} 3. Bh4 {[%emt 0:01:15]} g5 {[%emt 0:00:11]} 4. Bg3 {[%emt 0:02:34]} Bg7 {[%emt 0:00:12]} 5. e3 {[%emt 0:01:27]} c5 {[%emt 0:00:28]} 6. c3 {[%emt 0:00:30] A80: Dutch Defence: Unusual White second moves.} (6. dxc5 Bxb2 7. Nd2 Bxa1 8. Qxa1 Nf6 $15) 6... Qb6 {[%emt 0:00:09]} 7. Na3 $1 {[%emt 0:02:29][%mdl 4] [#] is recently more successful than 7.Nf3.} d5 $146 {[%emt 0:12:13]} (7... cxd4 $14 8. cxd4 (8. Nc4 Qe6 $11) 8... Qxb2) ({Predecessor:} 7... d6 8. Nc4 Qc7 9. Qb3 Nf6 10. Nf3 Ne4 11. Ncd2 Nxg3 12. hxg3 e6 13. O-O-O O-O {1-0 (52) Moiseenko,A (2602)-Hauge,L (2530) Tornelo INT 2022}) 8. Nb5 $1 $18 {[%emt 0:05:06] aiming for Nc7+. White is clearly better.} Na6 {[%emt 0:04:49] Against Nc7+} 9. dxc5 {[%emt 0:04:52]} Qxc5 {[%emt 0:00:25]} 10. Qh5+ {[%emt 0:00:06]} Kf8 {[%emt 0:00:19]} 11. Nf3 $1 {[%emt 0:04:12] Strongly threatening Ne5.} Nf6 {[%emt 0:18:32]} 12. Qg6 {[%emt 0:03:29]} Bd7 {[%emt 0:00:34]} 13. Nbd4 {[%emt 0:00:50]} (13. Ne5 Be8 14. Qxf5 Bxb5 $11) 13... Qb6 {[%emt 0:07:13]} (13... e6 $142) 14. Bxa6 {[%emt 0:03:33]} (14. Ne5 Be8 15. Qxf5 Qxb2 $11) 14... e6 $2 {[%emt 0:14:34] [#]} (14... Qxa6 15. Ne5 (15. Nxf5 Ne8 $18) 15... Be8 16. Qxf5 Kg8) 15. Bd3 {[%emt 0:03:32]} (15. Bxb7 $142 $1 Qxb2 16. Rd1 $1 Qxb7 17. Be5 (17. Bd6+ $2 Kg8 $19)) 15... f4 {[%emt 0:02:02] [#]} 16. Bb5 $1 {[%emt 0:17:10][%mdl 512]} Bxb5 $16 {[%emt 0:09:40]} 17. Nxb5 $2 {[%emt 0:00:07]} ({White must play} 17. exf4 $16 Be8 18. Qd3) 17... fxg3 $11 {[%emt 0:02:44]} 18. Ne5 $1 {[%emt 0:01:47][%csl Ge5][%cal Rg6f7]} gxf2+ {[%emt 0:01:25]} 19. Kd1 {[%emt 0:00:15][%csl Ge5][%cal Rg6f7,Be1d1,Bd1c2,Bc2b1][%mdl 32]} Kg8 {[%emt 0:00:19]} 20. Nd4 $2 {[%emt 0:06:52]} (20. Qf7+ $11 Kh7 21. Qg6+ Kg8 22. Qf7+ Kh7 23. Qg6+ Kg8) 20... Rf8 $19 {[%emt 0:01:23][%cal Of6g4]} 21. Rf1 {[%emt 0:01:31] [#]} Qxb2 {[%emt 0:10:55][%mdl 8192]} (21... h5 $1 $19 {avoids the disaster. Threatens to win with ...Rh6.} 22. Qc2 (22. Rxf2 $2 Qd6 $19) 22... Ne4) 22. Rb1 $40 {[%emt 0:00:11][%mdl 128] White has strong attack.} Qxa2 {[%emt 0:00:11] ...Rh7 is the strong threat.} 23. Rxb7 {[%emt 0:12:03][%csl Gg6][%cal Rb7g7]} (23. Nxe6 Qa4+ 24. Kc1 Qa3+ 25. Rb2 (25. Kd1 Qa4+ 26. Kc1 Qa3+ 27. Rb2 Qa1+ 28. Rb1 Qa3+ $16) 25... Qa1+ 26. Kc2 Qa4+ 27. Kb1 Qe4+ 28. Kc1 Qxg6 29. Nxg6 Re8 30. Nxg7 Kxg7 31. Nxh8 Ne4 $16) 23... Qa1+ {[%emt 0:01:27]} 24. Kc2 {[%emt 0:00:58][%csl Gg6][%cal Rb7g7]} Qa2+ {[%emt 0:00:17] [#]} 25. Rb2 $1 {[%emt 0:05:03] The board is on fire.} Qa4+ {[%emt 0:00:17]} 26. Kb1 {[%emt 0:00:09]} Qe8 {[%emt 0:01:19]} 27. Rfxf2 {[%emt 0:02:49] 0x0.0024a844899adp-1022s more active pieces.} Ne4 {[%emt 0:06:20]} (27... Qxg6+ $16 28. Nxg6 Re8) 28. Rxf8+ {[%emt 0:02:24][%mdl 64] Deflection} Qxf8 {[%emt 0:00:15]} 29. Qxe6+ {[%emt 0:00:07]} Kh7 {[%emt 0:00:10]} 30. Qg6+ {[%emt 0:00:19]} Kg8 {[%emt 0:00:02]} 31. Nf5 {[%emt 0:00:46] Pair of Knights! White mates.} Nd2+ {[%emt 0:05:38]} 32. Kc2 {[%emt 0:00:19]} Nc4 {[%emt 0:00:43] [#]} 33. Ne7+ $1 {[%emt 0:00:15][%mdl 512]} Qxe7 {[%emt 0:00:13]} 34. Rb8+ {[%emt 0:00:02] Weighted Error Value: White=0.32/Black=0.81} 1-0